bitfinex/quotes_BTCUSD_20250814
["timestamp","ask_amount","ask_price","bid_price","bid_amount"]
[1755207176865,0.97094453,117690.0,117680.0,0.03248]
[1755207177082,0.97094104,117690.0,117680.0,0.03248]
[1755207177317,0.93546904,117690.0,117680.0,0.03248]
[1755207177545,0.94337432,117690.0,117680.0,0.03248]
[1755207177763,1.02078145,117690.0,117680.0,0.03248]
[1755207178400,1.02178145,117690.0,117680.0,0.03348]
[1755207178604,1.02198145,117690.0,117680.0,0.03348]
[1755207178825,1.02198145,117690.0,117680.0,0.03048]
[1755207179051,0.53716021,117690.0,117680.0,0.03348]
[1755207179276,0.73716992,117690.0,117680.0,0.03348]
[1755207179745,0.73816992,117690.0,117680.0,0.03148]
[1755207180227,0.40907195,117690.0,117680.0,0.03148]
[1755207180429,0.56266356,117690.0,117680.0,0.20868121]
[1755207180643,0.81892992,117690.0,117680.0,0.20443241]
[1755207181541,0.98886789,117690.0,117680.0,0.20443241]
[1755207181742,0.81892992,117690.0,117680.0,0.20443241]
[1755207182571,0.81904992,117690.0,117680.0,0.20443241]
[1755207182783,0.65940992,117690.0,117680.0,0.20443241]
[1755207182997,0.81916992,117690.0,117680.0,0.20443241]
[1755207184035,0.80333158,117690.0,117680.0,0.20143241]
[1755207184241,0.81913783,117690.0,117680.0,0.20443241]
[1755207185276,0.76287147,117690.0,117680.0,0.20443241]
[1755207185498,0.80068562,117690.0,117680.0,0.20443241]
[1755207185919,0.80076562,117690.0,117680.0,0.20443241]
[1755207186341,0.78495937,117690.0,117680.0,0.20443241]
[1755207186784,0.62511937,117690.0,117680.0,0.20443241]
[1755207187040,0.28763131,117690.0,117680.0,0.78216281]
[1755207187260,0.12511937,117690.0,117680.0,0.78216281]
[1755207187446,0.08730522,117690.0,117680.0,0.78216281]
[1755207187688,0.24722522,117690.0,117680.0,0.78216281]
[1755207187901,0.07198081,117720.0,117680.0,1.40034223]
[1755207188114,0.2,117720.0,117710.0,0.16990909]
[1755207188323,0.21873456,117720.0,117710.0,0.75297949]
[1755207188762,0.05841456,117720.0,117710.0,0.75297949]
[1755207188980,0.2,117770.0,117750.0,0.17834394]
[1755207189192,0.80146022,117770.0,117760.0,0.17197695]
[1755207189403,0.2,117760.0,117750.0,0.17834394]
[1755207189614,0.2,117750.0,117740.0,0.17834682]
[1755207189830,0.2,117740.0,117730.0,0.17835062]
[1755207190033,0.8828704,117740.0,117730.0,0.17835062]
[1755207190315,0.3,117740.0,117730.0,0.18049062]
[1755207190518,0.36124,117740.0,117730.0,0.76154621]
[1755207190728,0.08481405,117740.0,117730.0,0.26863705]
[1755207190930,0.24649405,117740.0,117730.0,0.18381581]
[1755207191146,0.25249405,117740.0,117730.0,0.18481581]
[1755207191579,0.24649405,117740.0,117730.0,0.18381581]
[1755207191990,0.4,117760.0,117750.0,0.16985138]
[1755207192213,0.16172,117760.0,117750.0,0.51519138]
[1755207192441,0.15298,117800.0,117790.0,0.1697937]
[1755207192648,0.46686,117800.0,117790.0,0.1697937]
[1755207193280,0.5058591,117800.0,117790.0,0.1697937]
[1755207193487,0.67537652,117800.0,117790.0,0.1697937]
[1755207193704,0.67537652,117800.0,117790.0,0.16991889]
[1755207194398,0.67637652,117800.0,117790.0,0.16991889]
[1755207194606,0.67439652,117800.0,117790.0,0.17205889]
[1755207195233,0.67737652,117800.0,117790.0,0.16991889]
[1755207195445,0.8471558,117800.0,117790.0,0.00012519]
[1755207195654,0.8471558,117800.0,117790.0,0.16991889]
[1755207195861,1.35355374,117800.0,117790.0,0.16991889]
[1755207196072,0.67737652,117800.0,117790.0,0.16991889]
[1755207196286,0.67537652,117800.0,117790.0,0.16991889]
[1755207196696,0.67837652,117800.0,117790.0,0.16991889]
[1755207197123,0.67637652,117800.0,117790.0,0.16991889]
[1755207197328,0.67837652,117800.0,117790.0,0.17091889]
[1755207197553,0.68037652,117800.0,117790.0,0.17091889]
[1755207197761,0.47451742,117800.0,117790.0,0.17305889]
[1755207197964,0.55177405,117800.0,117790.0,0.17305889]
[1755207198841,0.38981405,117800.0,117790.0,0.17305889]
[1755207199050,1.40283055,117800.0,117790.0,0.17091889]
[1755207199266,1.40283055,117800.0,117790.0,0.00112519]
[1755207201679,1.44170381,117800.0,117790.0,0.17091889]
[1755207201858,1.52652505,117800.0,117790.0,0.00112519]
[1755207202291,0.85034783,117800.0,117790.0,0.00112519]
[1755207203153,1.52652505,117800.0,117790.0,0.00112519]
[1755207203788,1.44170381,117800.0,117790.0,0.00112519]
[1755207204014,0.76552659,117800.0,117790.0,0.17091889]
[1755207204231,0.59574731,117800.0,117790.0,0.17091889]
[1755207204446,0.59594731,117800.0,117790.0,0.17091889]
[1755207205367,0.55177405,117800.0,117790.0,0.17305889]
[1755207205627,0.18981405,117800.0,117790.0,0.17625889]
[1755207206073,0.35169405,117800.0,117790.0,0.17625889]
[1755207206301,0.40778521,117800.0,117790.0,0.17625889]
[1755207206794,0.40778521,117800.0,117790.0,0.17305889]
[1755207207441,0.35169405,117800.0,117790.0,0.17305889]
[1755207208368,0.18981405,117800.0,117790.0,0.17305889]
[1755207208589,0.35169405,117800.0,117790.0,0.17625889]
[1755207208811,0.18981405,117800.0,117790.0,0.17305889]
[1755207209482,0.35153405,117800.0,117790.0,0.17305889]
[1755207209708,0.35369405,117800.0,117790.0,0.17305889]
[1755207209932,0.35153405,117800.0,117790.0,0.17305889]
[1755207210390,0.41957418,117800.0,117790.0,0.17305889]
[1755207210636,0.42471418,117800.0,117790.0,0.17091889]
[1755207210866,1.47067068,117800.0,117790.0,0.00112519]
[1755207211084,1.47067068,117800.0,117790.0,0.17091889]
[1755207211303,0.64042772,117800.0,117790.0,0.17091889]
[1755207212834,0.57498493,117800.0,117790.0,0.17305889]
[1755207213061,0.74990421,117800.0,117790.0,0.17091889]
[1755207213309,0.58012493,117800.0,117790.0,0.17091889]
[1755207213977,0.74990421,117800.0,117790.0,0.17091889]
[1755207214206,0.58012493,117800.0,117790.0,0.17091889]
[1755207214672,0.66494617,117800.0,117790.0,0.17091889]
[1755207214895,0.66498493,117800.0,117790.0,0.17091889]
[1755207216249,0.83476421,117800.0,117790.0,0.17091889]
[1755207217185,0.66498493,117800.0,117790.0,0.17091889]
[1755207217414,1.51687033,117800.0,117790.0,0.00112519]
[1755207217862,0.84074084,117800.0,117790.0,0.00112519]
[1755207218101,1.51691806,117800.0,117790.0,0.00112519]
[1755207218325,1.51691806,117800.0,117790.0,0.17091889]
[1755207218766,0.84074084,117800.0,117790.0,0.17091889]
[1755207218985,0.5943196,117800.0,117790.0,0.17091889]
[1755207219207,0.58590032,117800.0,117790.0,0.17091889]
[1755207219457,0.7556796,117800.0,117790.0,0.17091889]
[1755207221080,0.58590032,117800.0,117790.0,0.17091889]
[1755207221302,0.77394663,117800.0,117790.0,0.16539792]
[1755207221516,0.85876787,117800.0,117790.0,0.16539792]
[1755207221729,0.58044032,117800.0,117790.0,0.16750792]
[1755207221976,0.58044032,117800.0,117790.0,0.17071792]
[1755207222211,0.58044032,117800.0,117790.0,0.16750792]
[1755207222439,0.7554996,117800.0,117790.0,0.1697937]
[1755207222873,0.77377988,117800.0,117790.0,0.1697937]
[1755207223326,0.85860112,117800.0,117790.0,0.1697937]
[1755207223550,0.88479677,117800.0,117790.0,0.1697937]
[1755207223788,0.89273091,117800.0,117790.0,0.1697937]
[1755207224303,0.62858939,117800.0,117790.0,0.1697937]
[1755207224755,0.78410939,117800.0,117790.0,0.1719037]
[1755207224982,0.62330939,117800.0,117790.0,0.1719037]
[1755207225208,0.78422656,117800.0,117790.0,0.1751137]
[1755207226854,0.78422656,117800.0,117790.0,0.1719037]
[1755207227290,0.62342656,117800.0,117790.0,0.1719037]
[1755207227524,0.7074906,117800.0,117790.0,0.1719037]
[1755207227752,0.78378656,117800.0,117790.0,0.1751137]
[1755207228193,0.62342656,117800.0,117790.0,0.1751137]
[1755207228426,0.78362656,117800.0,117790.0,0.1751137]
[1755207228919,0.78362656,117800.0,117790.0,0.1719037]
[1755207232021,0.62342656,117800.0,117790.0,0.1719037]
[1755207232244,0.78318656,117800.0,117790.0,0.1719037]
[1755207232461,0.78318573,117800.0,117790.0,0.1719037]
[1755207233100,0.62342573,117800.0,117790.0,0.1719037]
[1755207233322,0.37305683,117800.0,117790.0,0.1751137]
[1755207233771,0.27305683,117800.0,117790.0,0.1751137]
[1755207233982,0.37305683,117800.0,117790.0,0.1751137]
[1755207234202,0.37105683,117800.0,117790.0,0.1719037]
[1755207234417,0.45803807,117800.0,117790.0,0.1719037]
[1755207234641,0.45903807,117800.0,117790.0,0.1719037]
[1755207235112,0.45603807,117800.0,117790.0,0.1719037]
[1755207235329,0.4580324,117800.0,117790.0,0.1729037]
[1755207235549,0.4558724,117800.0,117790.0,0.1729037]
[1755207236618,0.37105116,117800.0,117790.0,0.1729037]
[1755207237325,0.21161116,117800.0,117790.0,0.1729037]
[1755207237788,0.37013116,117800.0,117790.0,0.1761137]
[1755207238229,0.37012474,117800.0,117790.0,0.1729037]
[1755207239414,0.37228474,117800.0,117790.0,0.1729037]
[1755207239842,0.37540474,117800.0,117790.0,0.1729037]
[1755207240305,0.46022598,117800.0,117790.0,0.1729037]
[1755207240750,0.45710598,117800.0,117790.0,0.1729037]
[1755207240980,0.37227943,117800.0,117790.0,0.1729037]
[1755207242051,0.37539943,117800.0,117790.0,0.1729037]
[1755207242265,0.35954428,117800.0,117790.0,0.1729037]
[1755207242493,0.55954428,117800.0,117790.0,0.1729037]
[1755207242718,0.5680528,117800.0,117790.0,0.1729037]
[1755207242938,1.16047286,117800.0,117790.0,0.1707937]
[1755207243593,1.33025214,117800.0,117790.0,0.1707937]
[1755207243879,0.58390479,117800.0,117790.0,0.1707937]
[1755207244101,1.16047286,117800.0,117790.0,0.1707937]
[1755207244315,1.16047501,117800.0,117790.0,0.1707937]
[1755207245101,0.58390694,117800.0,117790.0,0.1707937]
[1755207245337,1.31440015,117800.0,117790.0,0.1707937]
[1755207245554,1.16047401,117800.0,117790.0,0.1707937]
[1755207245961,1.33024963,117800.0,117790.0,0.1707937]
[1755207246392,1.31439649,117800.0,117790.0,0.1707937]
[1755207246612,1.33024823,117800.0,117790.0,0.1707937]
[1755207247061,1.9068163,117800.0,117790.0,0.1707937]
[1755207247274,1.88303799,117800.0,117790.0,0.1707937]
[1755207247487,1.30646992,117800.0,117790.0,0.1707937]
[1755207248381,1.30646992,117800.0,117790.0,0.001]
[1755207248602,0.72990185,117800.0,117790.0,0.1707937]
[1755207248833,0.55,117750.0,117740.0,0.10638717]
[1755207249057,0.55,117750.0,117730.0,0.10638717]
[1755207249058,0.52731482,117740.0,117730.0,0.10638717]
[1755207249283,0.52731482,117740.0,117700.0,0.0044303]
[1755207249284,0.71990909,117710.0,117700.0,0.0044303]
[1755207249509,0.91335314,117710.0,117700.0,0.0044303]
[1755207249728,1.63988121,117710.0,117700.0,0.0044303]
[1755207249935,0.2,117690.0,117680.0,0.77718583]
[1755207250149,0.44153405,117690.0,117680.0,0.77927583]
[1755207250393,0.44153405,117690.0,117680.0,0.20270776]
[1755207250599,0.45730763,117690.0,117680.0,0.20270776]
[1755207250817,0.7792756,117690.0,117680.0,0.01209]
[1755207251037,0.84829686,117690.0,117680.0,0.18204241]
[1755207251253,0.84626686,117690.0,117680.0,0.18204241]
[1755207251478,0.84626686,117690.0,117680.0,0.01209]
[1755207251754,0.84623893,117690.0,117680.0,0.01209]
[1755207251972,0.84623893,117690.0,117680.0,0.18204241]
[1755207252153,0.77821767,117690.0,117680.0,0.18304241]
[1755207252806,0.77821767,117690.0,117680.0,0.18404241]
[1755207253256,0.77821767,117690.0,117680.0,0.01409]
[1755207253473,0.78727267,117690.0,117680.0,0.18404241]
[1755207253698,0.86480245,117690.0,117680.0,0.18404241]
[1755207254165,0.86480245,117690.0,117680.0,0.18722241]
[1755207254166,0.3015597,117690.0,117680.0,0.18722241]
[1755207254397,0.4577597,117690.0,117680.0,0.18722241]
[1755207254628,0.45771218,117690.0,117680.0,0.18722241]
[1755207255472,0.30151218,117690.0,117680.0,0.18722241]
[1755207255704,0.45727218,117690.0,117680.0,0.18722241]
[1755207255928,0.47030007,117690.0,117680.0,0.18722241]
[1755207256121,0.64023804,117690.0,117680.0,0.01409]
[1755207256330,0.62924015,117690.0,117680.0,0.01409]
[1755207256536,0.70012201,117690.0,117680.0,0.01409]
[1755207256748,0.70012201,117690.0,117680.0,0.18404241]
[1755207256997,0.69690201,117690.0,117680.0,0.18404241]
[1755207257202,0.73451593,117690.0,117680.0,0.01409]
[1755207257411,0.73451593,117690.0,117680.0,0.012]
[1755207257412,0.82773593,117690.0,117680.0,0.012]
[1755207259360,0.82773593,117690.0,117680.0,0.18404241]
[1755207259602,0.82451593,117690.0,117680.0,0.01409]
[1755207259820,0.82451593,117690.0,117680.0,0.18404241]
[1755207260309,0.58762871,117670.0,117660.0,0.0004]
[1755207260547,1.62805378,117670.0,117660.0,0.0004]
[1755207260814,1.62801378,117670.0,117660.0,0.0004]
[1755207261043,1.63123378,117670.0,117660.0,0.0004]
[1755207261521,0.79924187,117670.0,117660.0,0.0004]
[1755207261738,0.78546224,117670.0,117660.0,0.17450606]
[1755207261962,0.63248224,117670.0,117660.0,0.1744713]
[1755207262224,0.56279038,117670.0,117660.0,0.1744713]
[1755207262426,0.56482038,117670.0,117660.0,0.1723813]
[1755207262638,0.56804038,117670.0,117660.0,0.1733813]
[1755207263068,0.47999914,117670.0,117660.0,0.1754713]
[1755207263256,0.61766186,117650.0,117640.0,0.1700102]
[1755207263501,0.61766186,117650.0,117630.0,1.08234159]
[1755207263502,1.5239017,117650.0,117630.0,1.08234159]
[1755207263719,0.08481405,117640.0,117630.0,1.25236529]
[1755207263925,0.30373218,117640.0,117630.0,1.25236529]
[1755207264132,0.30051218,117640.0,117630.0,1.25236529]
[1755207264380,0.3502052,117640.0,117630.0,1.25236529]
[1755207264606,0.30373218,117640.0,117630.0,1.25236529]
[1755207264880,0.30051218,117640.0,117630.0,1.25536529]
[1755207265492,0.30151218,117640.0,117630.0,1.25936529]
[1755207265925,0.30251218,117640.0,117630.0,1.26236529]
[1755207266146,0.56056362,117640.0,117630.0,0.70638444]
[1755207266353,1.23747553,117640.0,117630.0,0.70638444]
[1755207267702,1.23747553,117640.0,117630.0,0.87640909]
[1755207267909,1.23747553,117640.0,117630.0,0.70638444]
[1755207268148,1.27543176,117640.0,117630.0,0.66058045]
[1755207268358,0.52006802,117600.0,117590.0,0.0004]
[1755207268570,1.58029043,117600.0,117590.0,0.0004]
[1755207268776,0.8795202,117600.0,117590.0,0.0004]
[1755207268982,1.55643211,117600.0,117590.0,0.0004]
[1755207269422,0.8795202,117600.0,117590.0,0.0004]
[1755207269627,1.55743211,117600.0,117590.0,0.0004]
[1755207269845,1.55743211,117600.0,117590.0,0.00089117]
[1755207270052,1.64225335,117600.0,117590.0,0.00089117]
[1755207270261,0.96534144,117600.0,117590.0,0.00089117]
[1755207270473,1.64225335,117600.0,117590.0,0.00089117]
[1755207270891,0.96534144,117600.0,117590.0,0.00089117]
[1755207271192,0.79805342,117600.0,117590.0,0.17197366]
[1755207271386,0.69805342,117600.0,117590.0,0.17515366]
[1755207271595,0.69805342,117600.0,117590.0,0.17197366]
[1755207272230,0.69105342,117600.0,117590.0,0.17097366]
[1755207272701,0.69605342,117600.0,117590.0,0.17515366]
[1755207272914,0.54605342,117600.0,117590.0,0.17515366]
[1755207273067,0.54805342,117600.0,117590.0,0.17197366]
[1755207273279,0.90127342,117600.0,117590.0,0.17193366]
[1755207273706,0.90127342,117600.0,117590.0,0.00185117]
[1755207273707,0.9865202,117600.0,117590.0,0.00185117]
[1755207273906,0.81145218,117600.0,117590.0,0.17093366]
[1755207274285,0.81434932,117600.0,117590.0,0.17193366]
[1755207274498,0.98441734,117600.0,117590.0,0.17193366]
[1755207274692,0.81534932,117600.0,117590.0,0.17293366]
[1755207274921,1.07023858,117600.0,117590.0,0.00285117]
[1755207275476,0.98541734,117600.0,117590.0,0.00285117]
[1755207275684,1.47977827,117600.0,117590.0,0.00285117]
[1755207276088,0.80286636,117600.0,117590.0,0.00285117]
[1755207276297,1.47977827,117600.0,117590.0,0.00285117]
[1755207276513,1.464183,117600.0,117590.0,0.00285117]
[1755207276715,1.56461074,117600.0,117590.0,0.00285117]
[1755207277144,0.88769883,117600.0,117590.0,0.00285117]
[1755207277347,0.70018179,117600.0,117590.0,0.17293366]
[1755207277821,0.69696179,117600.0,117590.0,0.17293366]
[1755207278234,0.69696179,117600.0,117590.0,0.16272373]
[1755207278628,0.69696179,117600.0,117590.0,0.16577373]
[1755207279100,0.86702981,117600.0,117590.0,0.16272373]
[1755207279303,0.93901332,117600.0,117590.0,0.17008249]
[1755207279507,0.73901332,117600.0,117590.0,0.17008249]
[1755207279727,0.9767432,117600.0,117580.0,0.17009673]
[1755207279929,0.08481405,117590.0,117580.0,0.17009673]
[1755207280139,0.10042055,117590.0,117580.0,0.17009673]
[1755207280325,0.12749887,117590.0,117580.0,0.17009673]
[1755207280526,0.10042055,117590.0,117580.0,0.17009673]
[1755207281459,0.10042055,117590.0,117580.0,0.17109673]
[1755207281667,0.10042055,117590.0,117580.0,0.17414673]
[1755207282083,0.10342055,117590.0,117580.0,0.17414673]
[1755207282492,0.30342055,117590.0,117580.0,0.17414673]
[1755207282701,0.37539101,117590.0,117580.0,0.17414673]
[1755207282949,0.10442055,117590.0,117580.0,0.51514673]
[1755207283157,0.0196065,117590.0,117580.0,1.19205864]
[1755207283398,0.0196065,117590.0,117580.0,0.51514673]
[1755207283631,0.00349065,117600.0,117590.0,0.17008249]
[1755207283905,0.0883047,117600.0,117590.0,0.17008249]
[1755207284143,0.2853047,117600.0,117590.0,0.17313249]
[1755207284902,0.2853047,117600.0,117590.0,1.1900444]
[1755207285139,0.20049065,117600.0,117590.0,1.2207544]
[1755207285438,0.42394186,117630.0,117620.0,0.1700391]
[1755207285686,0.50890304,117630.0,117620.0,0.1700391]
[1755207286163,0.30890304,117630.0,117620.0,0.1700391]
[1755207286383,0.15262304,117630.0,117620.0,0.1730891]
[1755207286617,0.15262304,117630.0,117620.0,0.3305691]
[1755207287243,0.35262304,117630.0,117620.0,0.3305691]
[1755207287450,0.28496118,117630.0,117620.0,0.3305691]
[1755207287654,0.08496118,117630.0,117620.0,0.3305691]
[1755207287862,0.00014713,117630.0,117620.0,1.34748101]
[1755207288294,0.00114713,117630.0,117620.0,0.5140891]
[1755207288510,0.08596118,117630.0,117620.0,0.6713291]
[1755207288940,0.08496118,117630.0,117620.0,0.6703291]
[1755207289153,0.28596118,117630.0,117620.0,0.6713291]
[1755207289589,0.28596118,117630.0,117620.0,0.5110391]
[1755207290288,0.29496118,117630.0,117620.0,0.5120391]
[1755207291347,0.49496118,117630.0,117620.0,0.5120391]
[1755207291534,0.49496118,117630.0,117620.0,0.6690791]
[1755207292861,0.49496118,117630.0,117620.0,0.6690391]
[1755207293082,0.49496118,117630.0,117620.0,0.5120391]
[1755207293348,1.43020862,117630.0,117620.0,0.002]
[1755207293574,1.64694525,117630.0,117620.0,0.002]
[1755207294011,1.69786525,117630.0,117620.0,0.002]
[1755207294266,1.7196408,117630.0,117620.0,0.001]
[1755207294494,1.7256408,117630.0,117620.0,0.002]
[1755207294722,1.7421928,117630.0,117620.0,0.001]
[1755207294950,1.7551928,117630.0,117620.0,0.002]
[1755207295181,0.72005356,117610.0,117600.0,0.0085034]
[1755207295408,0.98563273,117610.0,117590.0,0.17858661]
[1755207295629,0.08481405,117600.0,117590.0,0.17858661]
[1755207295847,0.10375808,117600.0,117590.0,0.17858661]
[1755207297040,0.10055808,117600.0,117590.0,0.17858661]
[1755207297273,0.10556078,117600.0,117590.0,0.18263661]
[1755207297492,0.10556078,117600.0,117590.0,1.01598852]
[1755207297710,0.10856078,117600.0,117590.0,0.33907661]
[1755207297929,0.10856078,117600.0,117590.0,0.33919661]
[1755207298161,0.10856078,117600.0,117590.0,0.18263661]
[1755207298377,0.11921185,117600.0,117590.0,0.33923661]
[1755207299913,0.11921185,117600.0,117590.0,0.18263661]
[1755207300155,0.11921185,117600.0,117590.0,0.33911661]
[1755207300808,0.10856078,117600.0,117590.0,0.33911661]
[1755207303286,0.30856078,117600.0,117590.0,0.33911661]
[1755207303499,0.30856078,117600.0,117590.0,0.17958661]
[1755207304157,0.81836078,117600.0,117590.0,0.17958661]
[1755207304368,0.89193002,117600.0,117590.0,0.17958661]
[1755207304817,0.88602264,117600.0,117590.0,0.17958661]
[1755207305039,0.81836078,117600.0,117590.0,0.17958661]
[1755207305268,0.81516078,117600.0,117590.0,0.17958661]
[1755207305487,0.79941405,117600.0,117590.0,0.17958661]
[1755207305737,0.64281405,117600.0,117590.0,0.18263661]
[1755207305964,0.29281405,117600.0,117590.0,0.18263661]
[1755207306205,0.006,117610.0,117590.0,0.52263661]
[1755207306206,0.206,117610.0,117590.0,0.52263661]
[1755207306447,0.006,117610.0,117600.0,0.85428163]
[1755207306700,0.006,117610.0,117600.0,1.19002993]
[1755207307157,0.096,117610.0,117600.0,0.51311802]
[1755207307375,0.09,117610.0,117600.0,1.19002993]
[1755207307593,0.093,117610.0,117600.0,0.51311802]
[1755207307821,0.093,117610.0,117600.0,1.19002993]
[1755207308059,0.097,117610.0,117600.0,1.19102993]
[1755207308318,1e-08,117610.0,117600.0,1.19102993]
[1755207308536,1e-08,117610.0,117600.0,0.51411802]
[1755207308760,1e-08,117610.0,117600.0,1.19102993]
[1755207308982,0.20014713,117630.0,117620.0,0.1700391]
[1755207309206,0.25518625,117630.0,117620.0,0.1700391]
[1755207309419,0.25518625,117630.0,117620.0,0.1730391]
[1755207310197,0.26017625,117630.0,117620.0,0.1700391]
[1755207310435,0.25718625,117630.0,117620.0,0.5130391]
[1755207310873,0.25818625,117630.0,117620.0,0.5150391]
[1755207311080,0.25818625,117630.0,117620.0,0.5120391]
[1755207311509,0.25818625,117630.0,117620.0,1.19195101]
[1755207311720,0.21140535,117630.0,117620.0,1.19195101]
[1755207311963,0.01140535,117630.0,117620.0,1.19195101]
[1755207312189,0.00314713,117630.0,117620.0,1.19195101]
[1755207312412,0.00314713,117630.0,117620.0,1.20120018]
[1755207313080,0.00214713,117630.0,117620.0,1.19920018]
[1755207313291,0.00214713,117630.0,117620.0,1.20220018]
[1755207313559,0.00014713,117630.0,117620.0,1.20220018]
[1755207313781,0.00114713,117630.0,117620.0,1.20220018]
[1755207314003,0.00214713,117630.0,117620.0,1.20620018]
[1755207314221,0.00214713,117630.0,117620.0,0.69008827]
[1755207314436,0.00214713,117630.0,117620.0,1.36700018]
[1755207315086,0.00214713,117630.0,117620.0,1.35775101]
[1755207315299,0.00114713,117630.0,117620.0,1.35775101]
[1755207315746,0.00214713,117630.0,117620.0,1.35775101]
[1755207315981,0.00214713,117630.0,117620.0,1.19695101]
[1755207316197,0.01051778,117630.0,117620.0,0.5170391]
[1755207316421,0.01863474,117630.0,117620.0,0.5170391]
[1755207316847,0.01051778,117630.0,117620.0,0.5170391]
[1755207317758,0.24680118,117630.0,117620.0,0.1770391]
[1755207317978,0.64979118,117630.0,117620.0,0.1770391]
[1755207318442,0.8172402,117630.0,117620.0,0.1770391]
[1755207320484,0.85542115,117630.0,117620.0,0.1770391]
[1755207320705,0.94024239,117630.0,117620.0,0.1770391]
[1755207322551,1.11026704,117630.0,117620.0,0.007]
[1755207322766,1.90293596,117630.0,117620.0,0.007]
[1755207323217,1.21026704,117630.0,117620.0,0.007]
[1755207323445,1.20926704,117630.0,117620.0,0.007]
[1755207324647,1.20926704,117630.0,117620.0,0.004]
[1755207324866,1.21028704,117630.0,117610.0,0.1700416]
[1755207325127,1.13147299,117630.0,117620.0,0.001]
[1755207325339,1.12848299,117630.0,117620.0,0.001]
[1755207325550,1.13348299,117630.0,117620.0,0.001]
[1755207325765,1.13047299,117630.0,117610.0,0.1700416]
[1755207325993,1.12248299,117630.0,117610.0,0.1700416]
[1755207326207,0.00299,117620.0,117610.0,0.1710416]
[1755207326436,0.35986315,117620.0,117610.0,0.1710416]
[1755207326659,0.44468439,117620.0,117610.0,0.1710416]
[1755207326915,0.44468439,117620.0,117600.0,0.17006802]
[1755207326916,0.18750258,117610.0,117600.0,0.17006802]
[1755207327143,1.08309663,117610.0,117600.0,0.17006802]
[1755207327379,0.91603307,117610.0,117600.0,0.17006802]
[1755207328778,0.91903307,117610.0,117600.0,0.17106802]
[1755207329027,1.00385431,117610.0,117600.0,0.17106802]
[1755207329476,1.00386431,117610.0,117600.0,0.17316802]
[1755207329934,1.00386431,117610.0,117600.0,0.17106802]
[1755207330162,1.00685431,117610.0,117600.0,0.17106802]
[1755207334069,1.00386431,117610.0,117600.0,0.17106802]
[1755207334699,1.00386431,117610.0,117600.0,0.17316802]
[1755207335337,1.00685431,117610.0,117600.0,0.17106802]
[1755207337675,1.00184431,117610.0,117600.0,0.17319802]
[1755207337930,0.80184431,117610.0,117600.0,0.17622802]
[1755207338136,0.51702307,117610.0,117600.0,0.17622802]
[1755207338340,0.36702307,117610.0,117600.0,0.17622802]
[1755207338547,0.56702307,117610.0,117600.0,0.17622802]
[1755207338775,0.36702307,117610.0,117600.0,0.17622802]
[1755207339413,0.59637189,117610.0,117600.0,0.17622802]
[1755207339617,0.36702307,117610.0,117600.0,0.17622802]
[1755207339824,0.56702307,117610.0,117600.0,0.17622802]
[1755207341609,0.56911307,117610.0,117600.0,0.17319802]
[1755207342694,0.39081405,117610.0,117600.0,0.51622802]
[1755207342912,0.25005405,117610.0,117600.0,1.19313993]
[1755207343125,0.25005405,117610.0,117600.0,0.51622802]
[1755207343773,0.006,117610.0,117600.0,0.51622802]
[1755207344021,0.16628,117610.0,117600.0,1.19313993]
[1755207344234,0.16028,117610.0,117600.0,1.19213993]
[1755207344807,0.16228,117610.0,117600.0,1.19213993]
[1755207345437,0.16028,117610.0,117600.0,1.19213993]
[1755207345616,0.16328,117610.0,117600.0,1.19213993]
[1755207345824,0.16328,117610.0,117600.0,1.19313993]
[1755207346032,0.16028,117610.0,117600.0,1.19313993]
[1755207347357,0.16128,117610.0,117600.0,1.19313993]
[1755207347859,1e-08,117610.0,117600.0,1.23050993]
[1755207349401,1e-08,117610.0,117600.0,0.51622802]
[1755207349837,0.20000001,117610.0,117600.0,0.51622802]
[1755207351825,0.33900946,117610.0,117600.0,0.51319802]
[1755207352052,0.40986132,117610.0,117600.0,0.51106802]
[1755207352263,0.40986132,117610.0,117600.0,0.17106802]
[1755207353370,0.7473639,117610.0,117600.0,0.001]
[1755207353590,0.7473639,117610.0,117600.0,0.17106802]
[1755207353803,0.57731034,117610.0,117600.0,0.17106802]
[1755207354035,0.7473639,117610.0,117600.0,0.17106802]
[1755207354244,0.50964848,117610.0,117600.0,0.17106802]
[1755207356007,0.67970204,117610.0,117600.0,0.001]
[1755207356240,0.66810204,117610.0,117600.0,0.001]
[1755207356495,0.49547331,117610.0,117600.0,0.001]
[1755207356958,0.49547331,117610.0,117600.0,1e-08]
[1755207357184,0.32541975,117610.0,117600.0,0.17006803]
[1755207357401,0.49547331,117610.0,117600.0,0.17006802]
[1755207357647,0.4974735,117610.0,117600.0,0.17006802]
[1755207358143,0.49747324,117610.0,117600.0,0.17006802]
[1755207358375,0.21744902,117600.0,117590.0,0.17858602]
[1755207358597,0.53234039,117600.0,117590.0,0.17858602]
[1755207358819,0.53553039,117600.0,117590.0,0.17858602]
[1755207359753,0.53653039,117600.0,117590.0,0.17858602]
[1755207360712,0.53853039,117600.0,117590.0,0.17958602]
[1755207361393,0.57656065,117600.0,117590.0,0.17958602]
[1755207362100,0.58539041,117600.0,117590.0,0.17958602]
[1755207362552,0.78539041,117600.0,117590.0,0.17958602]
[1755207363825,0.78539041,117600.0,117590.0,0.18171602]
[1755207363826,0.61513065,117600.0,117590.0,0.18171602]
[1755207364316,0.77265065,117600.0,117590.0,0.18171602]
[1755207364538,0.78150121,117600.0,117590.0,0.18171602]
[1755207365735,0.77265065,117600.0,117590.0,0.18171602]
[1755207366457,0.77265065,117600.0,117590.0,0.18474602]
[1755207366925,0.64501405,117600.0,117590.0,0.18474602]
[1755207369158,0.403,117600.0,117590.0,0.18474602]
[1755207369394,0.55992,117600.0,117590.0,0.18474602]
[1755207370112,0.55944,117600.0,117590.0,0.18474602]
[1755207370550,0.64629405,117600.0,117590.0,0.17958602]
[1755207370774,0.72915346,117600.0,117590.0,0.17958602]
[1755207376379,0.76828765,117600.0,117590.0,0.17958602]
[1755207376722,0.76301765,117600.0,117590.0,0.18474602]
[1755207377163,0.76505765,117600.0,117590.0,0.18174602]
[1755207378466,0.78573667,117600.0,117590.0,0.17958602]
[1755207378702,0.78573667,117600.0,117590.0,0.1710819]
[1755207378918,1.36426946,117600.0,117590.0,0.1710819]
[1755207379362,0.78573667,117600.0,117590.0,0.1710819]
[1755207380044,1.36426946,117600.0,117590.0,0.1710819]
[1755207380262,1.53433748,117600.0,117590.0,0.1710819]
[1755207381825,0.95580469,117600.0,117590.0,0.1710819]
[1755207382045,0.95580469,117600.0,117590.0,0.001]
[1755207382046,1.55012978,117600.0,117590.0,0.001]
[1755207382478,1.55012978,117600.0,117590.0,1e-08]
[1755207383346,0.57159322,117580.0,117570.0,0.17861499]
[1755207383572,0.81320727,117580.0,117570.0,0.17861499]
[1755207383810,0.01744902,117570.0,117560.0,0.18839534]
[1755207384040,1.10762728,117570.0,117560.0,0.18839534]
[1755207384275,0.36221307,117570.0,117560.0,0.18839534]
[1755207384756,0.36221307,117570.0,117560.0,0.18888599]